lending/lending_fUSD_20241214
["ID","MTS","AMOUNT","RATE_DAILY","PERIOD"]
[345281891,1734136239171,-500.0,0.00021008,2]
[345281892,1734136239180,-500.0,0.00021008,2]
[345281893,1734136239190,-599.12,0.00021008,2]
[345281894,1734136239199,-500.0,0.00021008,2]
[345281895,1734136239207,-500.0,0.00021008,2]
[345281896,1734136239216,-500.0,0.00021008,2]
[345281897,1734136239226,-257.92459868,0.00021008,2]
[345281898,1734136239235,-500.0,0.00021008,2]
[345281899,1734136239244,-198.92351467,0.00021008,2]
[345281900,1734136239254,-287.38,0.00021008,2]
[345281901,1734136239262,-500.0,0.00021008,2]
[345281902,1734136239272,-500.0,0.00021008,2]
[345281903,1734136239281,-500.0,0.00021008,2]
[345281904,1734136239291,-500.0,0.00021008,2]
[345281905,1734136239300,-500.0,0.00021013,2]
[345281906,1734136239309,-500.0,0.00021013,2]
[345281907,1734136239321,-1439.13,0.00021013,2]
[345281908,1734136239330,-500.0,0.00021013,2]
[345281909,1734136239339,-500.0,0.00021013,2]
[345281910,1734136239348,-500.0,0.00021013,2]
[345281911,1734136239357,-500.0,0.00021013,2]
[345281912,1734136239366,-500.0,0.00021013,2]
[345281913,1734136239375,-1500.0,0.00021024,2]
[345281914,1734136239384,-227.4855823,0.00021031,2]
[345281915,1734136239395,-1500.0,0.00021039,2]
[345281916,1734136239403,-2150.40903,0.0002104,2]
[345281917,1734136239413,-150.0,0.00021042,2]
[345281918,1734136239423,-185.0,0.00021046,2]
[345281919,1734136239432,-1500.0,0.00021053,2]
[345281920,1734136239442,-150.0,0.00021082,2]
[345281921,1734136239452,-1500.0,0.00021089,2]
[345281922,1734136239461,-1500.0,0.00021096,2]
[345281923,1734136239470,-1500.0,0.00021105,2]
[345281924,1734136239479,-1500.0,0.00021113,2]
[345281925,1734136239489,-150.0,0.00021118,2]
[345281926,1734136239498,-1500.0,0.00021137,2]
[345281927,1734136239509,-1500.0,0.00021142,2]
[345281928,1734136239519,-150.0,0.00021153,2]
[345281929,1734136239531,-1500.0,0.00021169,2]
[345281930,1734136239541,-1500.0,0.00021172,2]
[345281931,1734136239550,-1500.0,0.00021193,2]
[345281932,1734136239560,-1500.0,0.00021194,2]
[345281933,1734136239572,-150.0,0.00021194,2]
[345281934,1734136239581,-150.0,0.000212,2]
[345281935,1734136239592,-5800.0,0.000212,2]
[345281936,1734136239601,-1500.0,0.00021201,2]
[345281937,1734136239611,-150.0,0.00021228,2]
[345281938,1734136239620,-500.0,0.00021232,2]
[345281939,1734136239629,-500.0,0.00021232,2]
[345281940,1734136239638,-500.0,0.00021232,2]
[345281941,1734136239647,-500.0,0.00021232,2]
[345281942,1734136239657,-221.27693952,0.00021232,2]
[345281943,1734136239665,-500.0,0.00021232,2]
[345281944,1734136239675,-500.0,0.00021232,2]
[345281945,1734136239684,-500.0,0.00021232,2]
[345281946,1734136239693,-714.0,0.00021233,2]
[345281947,1734136239702,-5121.0,0.00021233,2]
[345281948,1734136239711,-14954.0,0.00021233,2]
[345281949,1734136239720,-313.0,0.00021233,2]
[345281950,1734136239729,-956.0,0.00021233,2]
[345281951,1734136239740,-200.0,0.0002124,4]
[345281952,1734136239749,-1447.52370318,0.00021241,2]
[345281953,1734136239759,-200.121409,0.00021245,9]
[345281954,1734136239768,-197.121409,0.00021245,8]
[345281955,1734136239778,-300.121409,0.00021246,9]
[345281956,1734136239787,-300.121409,0.00021246,8]
[345281957,1734136239796,-300.121409,0.00021246,7]
[345281958,1734136239805,-300.121409,0.00021246,6]
[345281959,1734136239819,-300.121409,0.00021246,5]
[345281960,1734136239829,-300.121409,0.00021246,4]
[345281961,1734136239839,-300.121409,0.00021246,3]
[345281962,1734136239848,-300.121409,0.00021246,2]
[345281963,1734136239857,-300.121409,0.00021246,2]
[345281964,1734136239867,-300.121409,0.00021246,3]
[345281965,1734136239876,-300.121409,0.00021246,4]
[345281966,1734136239886,-300.121409,0.00021246,5]
[345281967,1734136239896,-300.121409,0.00021246,6]
[345281968,1734136239906,-300.121409,0.00021246,7]
[345281969,1734136239915,-300.121409,0.00021246,8]
[345281970,1734136239924,-300.121409,0.00021246,9]
[345281971,1734136239933,-300.121409,0.00021247,2]
[345281972,1734136239941,-300.121409,0.00021247,3]
[345281973,1734136239950,-300.121409,0.00021247,4]
[345281974,1734136239958,-300.121409,0.00021247,5]
[345281975,1734136239967,-300.121409,0.00021247,6]
[345281976,1734136239975,-300.121409,0.00021247,7]
[345281977,1734136239989,-300.121409,0.00021247,8]
[345281978,1734136239997,-300.121409,0.00021247,9]
[345281979,1734136240009,-300.121409,0.00021247,9]
[345281980,1734136240018,-300.121409,0.00021247,8]
[345281981,1734136240026,-300.121409,0.00021247,7]
[345281982,1734136240036,-300.121409,0.00021247,6]
[345281983,1734136240045,-300.121409,0.00021247,5]
[345281984,1734136240054,-300.121409,0.00021247,4]
[345281985,1734136240064,-300.121409,0.00021247,3]
[345281986,1734136240078,-300.121409,0.00021247,2]
[345281987,1734136240087,-300.121409,0.00021248,9]
[345281988,1734136240097,-300.121409,0.00021248,8]
[345281989,1734136240107,-300.121409,0.00021248,7]
[345281990,1734136240116,-300.121409,0.00021248,6]
[345281991,1734136240125,-300.121409,0.00021248,5]
[345281992,1734136240135,-300.121409,0.00021248,4]
[345281993,1734136240144,-300.121409,0.00021248,3]
[345281994,1734136240154,-300.121409,0.00021248,2]
[345281995,1734136240163,-7416.3523197,0.00021248,2]
[345281996,1734136240172,-300.121409,0.00021248,2]
[345281997,1734136240181,-300.121409,0.00021248,3]
[345281998,1734136240191,-300.121409,0.00021248,4]
[345281999,1734136240200,-300.121409,0.00021248,5]
[345282000,1734136240209,-300.121409,0.00021248,6]
[345282001,1734136240219,-300.121409,0.00021248,7]
[345282002,1734136240227,-300.121409,0.00021248,8]
[345282003,1734136240236,-300.121409,0.00021248,9]
[345282004,1734136240246,-300.121409,0.00021249,2]
[345282005,1734136240255,-300.121409,0.00021249,3]
[345282006,1734136240264,-300.121409,0.00021249,4]
[345282007,1734136240273,-185.7858959,0.00021249,2]
[345282008,1734136240283,-300.121409,0.00021249,5]
[345282009,1734136240292,-300.121409,0.00021249,6]
[345282010,1734136240302,-300.121409,0.00021249,7]
[345282011,1734136240318,-300.121409,0.00021249,8]
[345282012,1734136240327,-300.121409,0.00021249,9]
[345282013,1734136240336,-500.0,0.00021249,2]
[345282014,1734136240345,-1042.08806036,0.00021249,5]
[345282015,1734136240354,-1042.08806036,0.00021249,5]
[345282016,1734136240363,-1042.08806036,0.00021249,5]
[345282017,1734136240372,-1042.08806036,0.00021249,5]
[345282018,1734136240382,-284833.99455159,0.00021249,2]
[345282019,1734136240391,-500.0,0.00021249,2]
[345282020,1734136240400,-225.68181419,0.00021249,2]
[345282021,1734136240411,-1000.0,0.00021249,2]
[345282022,1734136240421,-500.0,0.00021249,2]
[345282023,1734136240431,-300.81,0.00021249,2]
[345282024,1734136240439,-618.32,0.00021249,2]
[345282025,1734136240449,-500.0,0.00021249,2]
[345282026,1734136240458,-500.0,0.00021249,2]
[345282027,1734136240467,-500.0,0.00021249,2]
[345282028,1734136240475,-500.0,0.00021249,2]
[345282029,1734136240484,-500.0,0.00021249,2]
[345282030,1734136240493,-500.0,0.00021249,2]
[345282031,1734136240502,-300.121409,0.00021249,8]
[345282032,1734136240511,-300.121409,0.00021249,7]
[345282033,1734136240520,-300.121409,0.00021249,6]
[345282034,1734136240530,-300.121409,0.00021249,5]
[345282035,1734136240539,-300.121409,0.00021249,4]
[345282036,1734136240548,-300.121409,0.00021249,3]
[345282037,1734136240557,-300.121409,0.00021249,2]
[345282038,1734136240569,-500.0,0.00021249,2]
[345282039,1734136240578,-500.0,0.00021249,2]
[345282040,1734136240587,-500.0,0.00021249,2]
[345282041,1734136240597,-500.0,0.00021249,2]
[345282042,1734136240606,-2645.121409,0.00021249,9]
[345282043,1734136240616,-500.0,0.00021249,2]
[345282044,1734136240625,-500.0,0.00021249,2]
[345282045,1734136240634,-500.0,0.00021249,2]
[345282046,1734136240642,-2905.09646231,0.00021249,20]
[345282047,1734136240651,-7867.02530316,0.0002125,2]
[345282048,1734136240660,-395151.06260465,0.0002125,4]
[345282049,1734136240670,-4844.42776359,0.0002125,2]
[345282050,1734136240679,-655.0,0.0002125,2]
[345282051,1734136240688,-203743.87744766,0.0002125,2]
[345282052,1734136240698,-9809335.53475902,0.0002125,2]
[345282053,1734136240719,-1592.69427192,0.0002125,2]
[345282054,1734136240730,-32382.8816126,0.0002125,2]
[345282055,1734136240749,-60177.31666,0.0002125,2]
[345282056,1734136240760,-380.67641698,0.0002125,2]
[345282057,1734136240880,-684.81,0.000204,2]
[345282058,1734136240890,-1315.14872373,0.0002125,2]
[345282059,1734136240901,-302.83,0.0002125,2]
[345282060,1734136240913,-993.02222608,0.0002125,2]
[345282061,1734136240924,-586.53999999,0.0002125,2]
[345282062,1734136240935,-134383.10848325,0.0002125,2]
[345282063,1734136240946,-57382.8155379,0.0002125,2]
[345282084,1734136243362,-4350.84126766,0.0002125,2]
[345282085,1734136243636,-116762.86570922,0.0002125,2]
[345282100,1734136246127,-500.0,0.00020998,2]
[345282101,1734136246136,-500.0,0.00020999,2]
[345282102,1734136246146,-3931.30985,0.0002125,2]
[345282103,1734136246289,-500.0,0.00021008,2]
[345282104,1734136246299,-2468.9321079,0.0002125,2]
[345282110,1734137123353,308.9,0.00010137,2]
[345282112,1734137226104,-308.9,0.00016813,2]
[345282113,1734137226125,-293.7,0.00017439,2]
[345282114,1734137226152,-839.08,0.00018968,2]
[345282115,1734137226173,-300.0,0.00018995,2]
[345282116,1734137226195,-529.9406787,0.00018996,2]
[345282117,1734137228110,-582.02655854,0.00018996,2]
[345282118,1734137237093,-7707.51276276,0.00018996,2]
[345282119,1734137237113,-150.0,0.0001911,2]
[345282120,1734137237135,-152.83305,0.00019185,2]
[345282121,1734137237159,-384.30960681,0.00019197,2]
[345282122,1734137237180,-384.3096068,0.00019231,2]
[345282123,1734137237201,-200.0,0.00019254,2]
[345282124,1734137237226,-250.0,0.00019254,2]
[345282125,1734137237248,-248.59,0.00019294,2]
[345282126,1734137237268,-158.0,0.00019297,2]
[345282127,1734137237289,-150.0,0.00019315,2]
[345282128,1734137237310,-168.3,0.00019331,2]
[345282129,1734137237330,-250.0,0.00019331,2]
[345282130,1734137237350,-299.99,0.00019405,7]
[345282131,1734137237370,-999.99,0.00019405,2]
[345282132,1734137237390,-157.18702711,0.00019405,2]
[345282133,1734137428585,279.01,0.00017576,2]
[345282137,1734137432505,-250.0,0.00019332,2]
[345282138,1734137432515,-150.0,0.00019364,2]
[345282139,1734137432525,-7875.09297289,0.00019405,2]
[345282140,1734137432534,-152.83305,0.00019505,2]
[345282141,1734137432543,-300.0,0.00019689,2]
[345282142,1734137432553,-300.0,0.00019689,2]
[345282143,1734137432562,-228.0,0.0001969,2]
[345282144,1734137432765,-9999.99,0.0001969,2]
[345282145,1734137432775,-150.99,0.0001969,2]
[345282146,1734137432785,-150.99,0.00019724,2]
[345282147,1734137432794,-152.83305,0.00019824,2]
[345282148,1734137432804,-279.01,0.0001984,2]
[345282149,1734137432813,-1000.0,0.00019842,2]
[345282150,1734137432823,-8819.48,0.00019946,2]
[345282151,1734137432833,-157.31,0.00019949,30]
[345282152,1734137432842,-228.0,0.0002,2]
[345282153,1734137432852,-1018.0,0.0002009,2]
[345282154,1734137432861,-152.83305,0.00020144,2]
[345282155,1734137432870,-411.79,0.0002019,2]
[345282156,1734137432879,-259.07,0.00020191,3]
[345282157,1734137432888,-150.0,0.00020191,2]
[345282158,1734137432898,-500.0,0.00020192,2]
[345282159,1734137432907,-500.0,0.00020192,2]
[345282160,1734137432917,-500.0,0.00020192,2]
[345282161,1734137432925,-500.0,0.00020192,2]
[345282162,1734137432935,-500.0,0.00020192,2]
[345282163,1734137432944,-500.0,0.00020192,2]
[345282164,1734137432954,-500.0,0.00020192,2]
[345282165,1734137432962,-500.0,0.00020192,2]
[345282166,1734137432971,-556.5567062,0.00020192,2]
[345282167,1734137432982,-500.0,0.00020192,2]
[345282168,1734137432992,-225.68181419,0.00020192,2]
[345282169,1734137433002,-273.88944163,0.00020192,2]
[345282170,1734137433011,-542.32194941,0.00020192,2]
[345282171,1734137433020,-224.67651009,0.00020192,2]
[345282172,1734137433030,-388.43469731,0.00020192,2]
[345282173,1734137433039,-500.0,0.00020192,2]
[345282174,1734137433049,-500.0,0.00020192,2]
[345282175,1734137433059,-500.0,0.00020192,2]
[345282176,1734137433070,-500.0,0.00020192,2]
[345282177,1734137433080,-500.0,0.00020192,2]
[345282178,1734137433090,-500.0,0.00020192,2]
[345282179,1734137433099,-500.0,0.00020192,2]
[345282180,1734137433109,-500.0,0.00020192,2]
[345282181,1734137433119,-500.0,0.00020192,2]
[345282182,1734137433129,-500.0,0.00020192,2]
[345282183,1734137433139,-500.0,0.00020192,2]
[345282184,1734137433149,-500.0,0.00020192,2]
[345282185,1734137433159,-500.0,0.00020192,2]
[345282186,1734137433169,-427.43691229,0.00020192,2]
[345282187,1734137433179,-500.0,0.00020192,2]
[345282188,1734137433188,-500.0,0.00020192,2]
[345282189,1734137433198,-500.0,0.00020192,2]
[345282190,1734137433208,-284.39,0.00020192,2]
[345282191,1734137433218,-531.16,0.00020192,2]
[345282192,1734137433227,-500.0,0.00020192,2]
[345282193,1734137433237,-500.0,0.00020192,2]
[345282194,1734137433247,-500.0,0.00020192,2]
[345282195,1734137433258,-500.0,0.00020192,2]
[345282196,1734137433272,-500.0,0.00020192,2]
[345282197,1734137433282,-500.0,0.00020192,2]
[345282198,1734137433292,-513.41,0.00020192,2]
[345282199,1734137433302,-500.0,0.00020192,2]
[345282200,1734137433312,-527.84091819,0.00020192,2]
[345282201,1734137433323,-500.0,0.00020192,2]
[345282202,1734137433335,-500.0,0.00020192,2]
[345282203,1734137433346,-500.0,0.00020192,2]
[345282204,1734137433356,-525.89,0.00020192,2]
[345282205,1734137433368,-4426.569,0.00020192,2]
[345282206,1734137433378,-500.0,0.00020192,2]
[345282207,1734137433388,-500.0,0.00020192,2]
[345282208,1734137433398,-500.0,0.00020192,2]
[345282209,1734137433408,-500.0,0.00020192,2]
[345282210,1734137433419,-500.0,0.00020192,2]
[345282211,1734137433428,-500.0,0.00020192,2]
[345282212,1734137433439,-500.0,0.00020192,2]
[345282213,1734137433448,-500.0,0.00020192,2]
[345282214,1734137433458,-500.0,0.00020192,2]
[345282215,1734137433468,-228.0,0.0002031,2]
[345282216,1734137433478,-57829.0,0.00020389,2]
[345282217,1734137433488,-616.33,0.000204,2]
[345282218,1734137433497,-435.34,0.00020438,2]
[345282219,1734137433506,-731.86,0.00020438,2]
[345282220,1734137433515,-350.5,0.00020438,2]
[345282221,1734137433525,-1949.48,0.00020438,2]
[345282222,1734137433535,-500.0,0.00020466,2]
[345282223,1734137433544,-504.47,0.00020466,2]
[345282224,1734137433553,-500.0,0.00020466,2]
[345282225,1734137433562,-500.0,0.00020466,2]
[345282226,1734137433573,-500.0,0.00020466,2]
[345282227,1734137433583,-500.0,0.00020466,2]
[345282228,1734137433593,-500.0,0.00020466,2]
[345282229,1734137433602,-308.16,0.00020466,2]
[345282230,1734137433611,-500.0,0.00020466,2]
[345282231,1734137433620,-500.0,0.00020466,2]
[345282232,1734137433630,-500.0,0.00020466,2]
[345282233,1734137433639,-500.0,0.00020466,2]
[345282234,1734137433649,-415.91,0.00020466,2]
[345282235,1734137433658,-500.0,0.00020466,2]
[345282236,1734137433667,-500.0,0.00020466,2]
[345282237,1734137433677,-500.0,0.00020466,2]
[345282238,1734137433686,-334.89,0.00020466,2]
[345282239,1734137433696,-500.0,0.00020466,2]
[345282240,1734137433706,-472.77,0.00020466,2]
[345282241,1734137433716,-500.0,0.00020466,2]
[345282242,1734137433725,-500.0,0.00020466,2]
[345282243,1734137433734,-500.0,0.00020466,2]
[345282244,1734137433744,-500.0,0.00020466,2]
[345282245,1734137433754,-1000.0,0.00020466,2]
[345282246,1734137433763,-1000.0,0.00020466,2]
[345282247,1734137433773,-1000.0,0.00020466,2]
[345282248,1734137433783,-1000.0,0.00020466,2]
[345282249,1734137433792,-1000.0,0.00020466,2]
[345282250,1734137433802,-886.0,0.00020466,2]
[345282251,1734137433812,-167.44,0.00020502,2]
[345282252,1734137433824,-500.0,0.00020547,2]
[345282253,1734137433834,-500.0,0.00020547,2]
[345282254,1734137433843,-500.0,0.00020547,2]
[345282255,1734137433852,-252.99751991,0.00020547,2]
[345282256,1734137433862,-3672.0,0.00020548,10]
[345282257,1734137433871,-6000.0,0.00020548,7]
[345282258,1734137433881,-4460.18892101,0.00020627,2]
[345282259,1734137433890,-228.0,0.0002063,2]
[345282260,1734137433899,-4460.18892101,0.00020714,2]
[345282261,1734137433908,-500.0,0.0002074,2]
[345282262,1734137433917,-167.16,0.0002074,2]
[345282263,1734137433927,-500.0,0.0002074,2]
[345282264,1734137433936,-623.36,0.0002074,2]
[345282265,1734137433946,-500.0,0.0002074,2]
[345282266,1734137433956,-500.0,0.0002074,2]
[345282267,1734137433966,-347.48,0.0002074,2]
[345282268,1734137433976,-610.24,0.0002074,2]
[345282269,1734137433986,-500.0,0.0002074,2]
[345282270,1734137433996,-500.0,0.0002074,2]
[345282271,1734137434006,-500.0,0.0002074,2]
[345282272,1734137434015,-500.0,0.0002074,2]
[345282273,1734137434025,-500.0,0.0002074,2]
[345282274,1734137434034,-4460.18892101,0.00020802,2]
[345282275,1734137434043,-1761.0116,0.00020833,2]
[345282276,1734137434053,-1949.01,0.00020849,2]
[345282277,1734137434062,-869.8,0.00020849,2]
[345282278,1734137434073,-4460.18892101,0.00020889,2]
[345282279,1734137434082,-200.0,0.00020893,2]
[345282280,1734137434092,-8819.48,0.00020896,2]
[345282281,1734137434102,-2340.7767,0.000209,2]
[345282282,1734137434113,-200.0,0.00020924,2]
[345282283,1734137434122,-500.0,0.00020933,2]
[345282284,1734137434132,-500.0,0.00020933,2]
[345282285,1734137434141,-500.0,0.00020933,2]
[345282286,1734137434151,-500.0,0.00020933,2]
[345282287,1734137434160,-500.0,0.00020933,2]
[345282288,1734137434170,-500.0,0.00020933,2]
[345282289,1734137434179,-500.0,0.00020933,2]
[345282290,1734137434188,-500.0,0.00020933,2]
[345282291,1734137434198,-419.26,0.00020933,2]
[345282292,1734137434207,-500.0,0.00020933,2]
[345282293,1734137434217,-566.01,0.00020933,2]
[345282294,1734137434227,-514.695,0.00020933,2]
[345282295,1734137434236,-500.0,0.00020933,2]
[345282296,1734137434245,-500.0,0.00020933,2]
[345282297,1734137434255,-500.0,0.00020933,2]
[345282298,1734137434268,-500.0,0.00020933,2]
[345282299,1734137434278,-500.0,0.00020933,2]
[345282300,1734137434287,-500.0,0.00020933,2]
[345282301,1734137434297,-313.03,0.00020933,2]
[345282302,1734137434306,-500.69024339,0.00020933,2]
[345282303,1734137434316,-500.0,0.00020933,2]
[345282304,1734137434327,-500.0,0.00020933,2]
[345282305,1734137434337,-500.0,0.00020933,2]
[345282306,1734137434347,-500.0,0.00020933,2]
[345282307,1734137434356,-500.0,0.00020933,2]
[345282308,1734137434365,-500.0,0.00020933,2]
[345282309,1734137434374,-500.0,0.00020933,2]
[345282310,1734137434384,-544.84,0.00020933,2]
[345282311,1734137434393,-500.0,0.00020933,2]
[345282312,1734137434403,-500.0,0.00020933,2]
[345282313,1734137434412,-500.0,0.00020933,2]
[345282314,1734137434421,-500.0,0.00020933,2]
[345282315,1734137434431,-500.0,0.00020933,2]
[345282316,1734137434441,-500.0,0.00020933,2]
[345282317,1734137434450,-500.0,0.00020933,2]
[345282318,1734137434461,-501.46927845,0.00020933,2]
[345282319,1734137434471,-594.99,0.00020933,2]
[345282320,1734137434481,-500.0,0.00020933,2]
[345282321,1734137434491,-220.73,0.00020933,2]
[345282322,1734137434501,-500.0,0.00020933,2]
[345282323,1734137434510,-874.76,0.00020933,2]
[345282324,1734137434520,-515.26,0.00020933,2]
[345282325,1734137434531,-500.0,0.00020933,2]
[345282326,1734137434540,-500.0,0.00020933,2]
[345282327,1734137434549,-500.0,0.00020933,2]
[345282328,1734137434559,-500.0,0.00020933,2]
[345282329,1734137434568,-500.0,0.00020933,2]
[345282330,1734137434580,-500.0,0.00020933,2]
[345282331,1734137434590,-500.0,0.00020933,2]
[345282332,1734137434600,-500.0,0.00020933,2]
[345282333,1734137434609,-500.0,0.00020933,2]
[345282334,1734137434619,-509.67996737,0.00020933,2]
[345282335,1734137434628,-500.0,0.00020933,2]
[345282336,1734137434638,-500.0,0.00020933,2]
[345282337,1734137434647,-500.0,0.00020933,2]
[345282338,1734137434656,-500.0,0.00020933,2]
[345282339,1734137434665,-500.0,0.00020933,2]
[345282340,1734137434675,-500.0,0.00020933,2]
[345282341,1734137434684,-500.0,0.00020933,2]
[345282342,1734137434694,-500.0,0.00020933,2]
[345282343,1734137434704,-500.0,0.00020933,2]
[345282344,1734137434714,-420.96186316,0.00020933,2]
[345282345,1734137434723,-500.0,0.00020933,2]
[345282346,1734137434733,-500.0,0.00020933,2]
[345282347,1734137434742,-500.0,0.00020933,2]
[345282348,1734137434752,-500.0,0.00020933,2]
[345282349,1734137434762,-500.0,0.00020933,2]
[345282350,1734137434771,-235.66,0.00020933,2]
[345282351,1734137434781,-1262.0,0.00020934,2]
[345282352,1734137434790,-567.0,0.00020934,2]
[345282353,1734137434800,-1683.472,0.00020934,2]
[345282354,1734137434810,-150.0,0.00020934,2]
[345282355,1734137434822,-1864.197,0.00020934,2]
[345282356,1734137434833,-1055.782,0.00020934,2]
[345282357,1734137434843,-1253.0,0.00020934,2]
[345282358,1734137434853,-11990.099,0.00020934,2]
[345282359,1734137434862,-1167.0,0.00020934,2]
[345282360,1734137434873,-3924.584,0.00020934,2]
[345282361,1734137434882,-150.0,0.00020934,2]
[345282362,1734137434891,-1099.0,0.00020934,2]
[345282363,1734137434901,-228.0,0.0002094,2]
[345282364,1734137434911,-4460.18892101,0.00020976,2]
[345282365,1734137434921,-1500.0,0.00020984,2]
[345282366,1734137434930,-369.66283205,0.00020995,2]
[345282367,1734137434940,-500.0,0.00020998,2]
[345282368,1734137434949,-161.57701037,0.00020998,2]
[345282369,1734137434959,-500.0,0.00020998,2]
[345282370,1734137434968,-500.0,0.00020998,2]
[345282371,1734137434978,-500.0,0.00020998,2]
[345282372,1734137434988,-500.0,0.00020998,2]
[345282373,1734137434997,-500.0,0.00020998,2]
[345282374,1734137435007,-403.85,0.00020998,2]
[345282375,1734137435018,-500.0,0.00020998,2]
[345282376,1734137435027,-500.0,0.00020998,2]
[345282377,1734137435038,-500.0,0.00020998,2]
[345282378,1734137435047,-500.0,0.00020998,2]
[345282379,1734137435057,-500.0,0.00020998,2]
[345282380,1734137435066,-500.0,0.00020998,2]
[345282381,1734137435078,-500.0,0.00020998,2]
[345282382,1734137435088,-279.37,0.00020998,2]
[345282383,1734137435097,-500.0,0.00020998,2]
[345282384,1734137435106,-306.32027558,0.00020998,2]
[345282385,1734137435115,-500.0,0.00020998,2]
[345282386,1734137435124,-331.27025021,0.00020998,2]
[345282387,1734137435134,-547.98,0.00020998,2]
[345282388,1734137435143,-500.0,0.00020998,2]
[345282389,1734137435153,-500.0,0.00020998,7]
[345282390,1734137435162,-628.79,0.00020998,2]
[345282391,1734137435172,-500.0,0.00020998,2]
[345282392,1734137435181,-553.79626845,0.00020998,2]
[345282393,1734137435190,-411.45,0.00020998,2]
[345282394,1734137435199,-418.01,0.00020998,2]
[345282395,1734137435209,-500.0,0.00020998,2]
[345282396,1734137435218,-500.0,0.00020998,2]
[345282397,1734137435227,-500.0,0.00020998,2]
[345282398,1734137435237,-500.0,0.00020998,2]
[345282399,1734137435247,-607.59,0.00020998,2]
[345282400,1734137435257,-500.0,0.00020998,2]
[345282401,1734137435271,-500.0,0.00020998,2]
[345282402,1734137435281,-500.0,0.00020998,2]
[345282403,1734137435291,-579.5,0.00020998,2]
[345282404,1734137435300,-500.0,0.00020998,2]
[345282405,1734137435311,-500.0,0.00020998,2]
[345282406,1734137435321,-500.0,0.00020998,2]
[345282407,1734137435330,-500.0,0.00020998,2]
[345282408,1734137435341,-500.0,0.00020998,2]
[345282409,1734137435350,-618.32,0.00020998,2]
[345282410,1734137435360,-500.0,0.00020998,2]
[345282411,1734137435369,-500.0,0.00020998,2]
[345282412,1734137435379,-500.0,0.00020998,2]
[345282413,1734137435389,-500.0,0.00020998,2]
[345282414,1734137435398,-500.0,0.00020998,2]
[345282415,1734137435407,-500.0,0.00020998,2]
[345282416,1734137435417,-500.0,0.00020998,2]
[345282417,1734137435426,-500.0,0.00021008,2]
[345282418,1734137435436,-1447.52370318,0.00021011,2]
[345282419,1734137435445,-500.0,0.00021013,2]
[345282420,1734137435455,-500.0,0.00021013,2]
[345282421,1734137435464,-178.44,0.00021013,2]
[345282422,1734137435474,-188.5,0.00021013,2]
[345282423,1734137435483,-596.78,0.00021013,2]
[345282424,1734137435493,-500.0,0.00021013,2]
[345282425,1734137435502,-284.67,0.00021013,2]
[345282426,1734137435512,-1500.0,0.00021014,2]
[345282427,1734137435521,-1500.0,0.00021024,2]
[345282428,1734137435530,-1500.0,0.00021026,2]
[345282429,1734137435540,-2722.08933,0.0002104,2]
[345282430,1734137435550,-220.0,0.00021045,2]
[345282431,1734137435559,-4460.18892101,0.00021063,2]
[345282432,1734137435571,-150.0,0.00021063,2]
[345282433,1734137435580,-1500.0,0.00021064,2]